fUSD/lending_fUSD_20251112
["ID","MTS","AMOUNT","RATE_DAILY","PERIOD"]
[393712995,1762941038199,-151.0,0.00038783,2]
[393712996,1762941038208,-240.89319949,0.00038783,2]
[393712997,1762941038218,-500.0,0.00038792,15]
[393712998,1762941038228,-500.0,0.00038792,15]
[393712999,1762941038238,-500.0,0.00038792,15]
[393713000,1762941038247,-500.0,0.00038792,15]
[393713001,1762941038259,-500.0,0.00038792,15]
[393713002,1762941038270,-500.0,0.00038792,15]
[393713003,1762941038279,-500.0,0.00038792,15]
[393713004,1762941038289,-500.0,0.00038792,15]
[393713005,1762941038299,-500.0,0.00038792,15]
[393713006,1762941038309,-500.0,0.00038792,15]
[393713007,1762941038329,-500.0,0.00038792,15]
[393713008,1762941038342,-500.0,0.00038792,15]
[393713009,1762941038351,-500.0,0.00038792,15]
[393713010,1762941038361,-500.0,0.00038792,15]
[393713011,1762941038371,-500.0,0.00038792,15]
[393713012,1762941038381,-500.0,0.00038792,15]
[393713013,1762941038391,-500.0,0.00038792,15]
[393713014,1762941038400,-500.0,0.00038792,15]
[393713015,1762941038410,-500.0,0.00038792,15]
[393713016,1762941038419,-500.0,0.00038792,15]
[393713017,1762941038429,-505.98624007,0.00038792,15]
[393713018,1762941038439,-500.0,0.00038792,15]
[393713019,1762941038449,-500.0,0.00038792,15]
[393713020,1762941038459,-500.0,0.00038792,15]
[393713021,1762941038469,-500.0,0.00038792,15]
[393713022,1762941038479,-23227.4751676,0.00038796,4]
[393713023,1762941038492,-964.3994256,0.00038796,4]
[393713024,1762941038504,-799.99999999,0.00038796,4]
[393713025,1762941038515,-27838.23723301,0.00038796,4]
[393713026,1762941038525,-235.72707033,0.000388,10]
[393713028,1762941040002,-1264.27292967,0.000388,10]
[393713029,1762941040012,-180.95,0.00038805,30]
[393713030,1762941040021,-227.26,0.00038805,7]
[393713031,1762941040031,-7435.81916406,0.00038806,2]
[393713036,1762941042967,-337.07660431,0.0003803,20]
[393713037,1762941043073,-715.92552327,0.0003803,20]
[393713038,1762941043083,-1149.35548114,0.0003803,20]
[393713039,1762941043092,-5916.76753297,0.00038806,2]
[393713058,1762941046390,-160.62733868,0.00032,120]
[393713059,1762941046400,-417.22097998,0.0003803,20]
[393713060,1762941046444,-649.93407956,0.0003803,20]
[393713061,1762941046454,-1019.01325538,0.0003803,20]
[393713062,1762941046463,-1031.12186907,0.0003803,20]
[393713063,1762941046472,-723.82540946,0.00038806,2]
[393713064,1762941046482,-984.09136548,0.00038806,2]
[393713081,1762941485184,195.0,0.000297,120]
[393713082,1762941485409,195.0,0.0002725,120]
[393713085,1762941554916,351.83716051,0.000164,2]
[393713095,1762941847647,195.0,0.000297,120]
[393713106,1762942153097,-1006.31,0.00025,2]
[393713107,1762942153122,-592.327054,0.000255,2]
[393713108,1762942186580,157.64,0.00013699,2]
[393713113,1762942231875,-157.64,0.00023973,2]
[393713114,1762942231886,-250.0,0.00023973,2]
[393713115,1762942231896,-520.0,0.00023973,2]
[393713116,1762942231905,-413.982946,0.000255,2]
[393713117,1762942231915,-251.20800392,0.0002613,2]
[393713118,1762942231924,-250.0,0.0002637,2]
[393713119,1762942231934,-183.15188337,0.00027,2]
[393713120,1762942231943,-183.27269718,0.00029917,2]
[393713121,1762942231952,-5516.0,0.00032,3]
[393713122,1762942231962,-5516.0,0.000327,5]
[393713123,1762942231972,-1600.0,0.00032899,3]
[393713124,1762942231981,-400.0,0.00032899,3]
[393713125,1762942231990,-74.80352728,0.00032899,2]
[393713126,1762942232001,-325.19647272,0.00032899,2]
[393713127,1762942232011,-1291.0,0.00033298,3]
[393713128,1762942232021,-151.90588702,0.00033575,30]
[393713129,1762942232030,-198.18,0.00033602,2]
[393713130,1762942232047,-157.64,0.00034247,2]
[393713131,1762942232056,-150.486868,0.0003452,20]
[393713132,1762942232066,-150.486868,0.0003452,20]
[393713133,1762942232075,-1660.19,0.00034922,2]
[393713134,1762942232085,-150.486868,0.0003526,20]
[393713135,1762942232095,-150.486868,0.0003526,20]
[393713136,1762942232107,-150.486868,0.0003526,20]
[393713137,1762942232125,-161.357168,0.0003526,20]
[393713138,1762942232134,-155.110202,0.0003526,20]
[393713139,1762942232144,-214.855079,0.0003526,20]
[393713140,1762942232153,-560.0,0.00035352,2]
[393713141,1762942232163,-327.0,0.00035352,3]
[393713142,1762942232172,-1680.0,0.00035496,3]
[393713143,1762942232182,-3323.31,0.00036342,2]
[393713144,1762942232191,-150.0,0.00036479,2]
[393713145,1762942232201,-2143.0,0.00037411,2]
[393713146,1762942232211,-6482.0,0.00037411,2]
[393713147,1762942232220,-200.0,0.0003751,2]
[393713148,1762942232229,-166.66,0.00037537,2]
[393713149,1762942232239,-500.0,0.00037557,7]
[393713151,1762942232248,-600.0,0.00037557,7]
[393713153,1762942232257,-700.0,0.00037557,7]
[393713155,1762942232267,-783.0,0.00037988,2]
[393713157,1762942232275,-1291.67574236,0.00038,20]
[393713159,1762942232287,-642.90252611,0.00038,20]
[393713161,1762942232298,-765.79392964,0.00038,20]
[393713166,1762942232330,-511.71246314,0.00038,20]
[393713170,1762942232356,-9614.5236304,0.00038,20]
[393713176,1762942237950,-2156.88,0.00038,20]
[393713177,1762942237960,-2195.2182551,0.00038,20]
[393713178,1762942238044,-448.40467669,0.00038,20]
[393713179,1762942238057,-1117.23653689,0.00038,20]
[393713180,1762942238148,-21900.9332352,0.00038,20]
[393713181,1762942238162,-9911.88097392,0.00038,20]
[393713182,1762942238173,-1614.92737923,0.00038,20]
[393713183,1762942238202,-6712.72065132,0.00038,20]
[393713184,1762942238211,-398.927,0.00038,50]
[393713185,1762942238221,-165.0,0.00038,30]
[393713186,1762942238231,-1000.0,0.00038,30]
[393713187,1762942238240,-1101.40257034,0.0003803,20]
[393713188,1762942238251,-1095.59053074,0.0003803,20]
[393713189,1762942238260,-267.9395639,0.0003803,20]
[393713190,1762942238271,-741.4225473,0.0003803,20]
[393713191,1762942238281,-1110.13301119,0.0003803,20]
[393713192,1762942238291,-405.14999816,0.0003803,20]
[393713204,1762942239987,-151.0,0.00035157,2]
[393713205,1762942239998,-146.7262798,0.0003803,20]
[393713206,1762942240010,-468.98570408,0.0003803,20]
[393713207,1762942240020,-213.61952776,0.0003803,20]
[393713208,1762942240144,-310.0,0.0003803,20]
[393713209,1762942240305,-597.17008582,0.0003803,20]
[393713210,1762942240314,-1129.52224774,0.0003803,20]
[393713211,1762942240323,-1094.57229568,0.0003803,20]
[393713212,1762942240333,-1060.75677446,0.0003803,20]
[393713213,1762942240342,-1104.03206517,0.0003803,20]
[393713214,1762942240353,-1041.70240686,0.0003803,20]
[393713215,1762942240362,-1021.74103673,0.0003803,20]
[393713216,1762942240371,-1116.82494411,0.0003803,20]
[393713217,1762942240380,-1088.77895778,0.0003803,20]
[393713218,1762942240390,-1111.17593917,0.0003803,20]
[393713219,1762942240400,-1640.6319178,0.0003803,20]
[393713221,1762942240409,-1000.0,0.0003815,45]
[393713222,1762942240419,-480.0,0.00038299,14]
[393713223,1762942240428,-168.0,0.00038328,2]
[393713224,1762942240438,-173.33,0.00038356,2]
[393713225,1762942240645,-1207.25,0.00038356,2]
[393713226,1762942240655,-215.44,0.00038356,2]
[393713227,1762942240665,-154.11,0.00038356,2]
[393713228,1762942240674,-153.05,0.00038356,2]
[393713229,1762942240683,-150.58,0.00038356,2]
[393713230,1762942240692,-358.55,0.00038356,2]
[393713231,1762942240701,-416.24,0.00038356,2]
[393713232,1762942240710,-1099.48,0.00038356,2]
[393713233,1762942240719,-152.85,0.00038356,2]
[393713234,1762942240728,-354.28,0.00038356,2]
[393713235,1762942240737,-150.0,0.00038356,2]
[393713236,1762942240746,-150.0,0.00038356,2]
[393713237,1762942240755,-2414.5,0.00038356,2]
[393713238,1762942240764,-1099.48,0.00038356,2]
[393713239,1762942240773,-169.26,0.00038356,2]
[393713240,1762942240783,-416.24,0.00038356,2]
[393713241,1762942240791,-300.0,0.00038356,2]
[393713242,1762942240800,-150.0,0.00038356,2]
[393713243,1762942240809,-150.0,0.00038356,2]
[393713244,1762942240820,-169.26,0.00038356,2]
[393713245,1762942240829,-150.0,0.00038356,2]
[393713246,1762942240839,-416.24,0.00038356,2]
[393713247,1762942240848,-150.0,0.00038356,2]
[393713248,1762942240857,-150.0,0.00038356,2]
[393713249,1762942240867,-169.26,0.00038356,2]
[393713250,1762942240876,-150.0,0.00038356,2]
[393713251,1762942240885,-416.24,0.00038356,2]
[393713252,1762942240894,-150.0,0.00038356,2]
[393713253,1762942240908,-600.0,0.00038379,7]
[393713254,1762942240917,-700.0,0.00038379,7]
[393713255,1762942240926,-153.0,0.0003844,120]
[393713256,1762942240935,-153.0,0.0003844,120]
[393713257,1762942240944,-153.0,0.0003844,120]
[393713258,1762942240954,-153.0,0.0003844,120]
[393713259,1762942240963,-153.0,0.0003844,120]
[393713260,1762942240973,-153.0,0.0003844,120]
[393713261,1762942240983,-153.0,0.0003844,120]
[393713262,1762942240993,-153.0,0.0003844,120]
[393713263,1762942241002,-153.0,0.0003844,120]
[393713264,1762942241013,-153.0,0.0003844,120]
[393713265,1762942241023,-153.0,0.0003844,120]
[393713266,1762942241032,-153.0,0.0003844,120]
[393713267,1762942241046,-153.0,0.0003844,120]
[393713268,1762942241056,-173.85338264,0.000385,120]
[393713269,1762942241066,-33161.6491,0.0003853,2]
[393713270,1762942241075,-3879.63858991,0.00038531,2]
[393713271,1762942241087,-167.36798906,0.00038531,2]
[393713272,1762942241097,-189.88872462,0.00038534,2]
[393713273,1762942241109,-250.77606,0.00038538,2]
[393713274,1762942241120,-151.0,0.00038608,2]
[393713275,1762942241130,-151.0,0.00038608,2]
[393713276,1762942241140,-151.0,0.00038608,2]
[393713277,1762942241151,-151.0,0.00038608,2]
[393713278,1762942241161,-151.0,0.00038608,2]
[393713279,1762942241171,-151.0,0.00038608,2]
[393713280,1762942241181,-151.0,0.00038608,2]
[393713281,1762942241190,-151.0,0.00038608,2]
[393713282,1762942241200,-151.0,0.00038608,2]
[393713283,1762942241209,-151.0,0.00038608,2]
[393713284,1762942241220,-151.0,0.00038608,2]
[393713285,1762942241229,-151.0,0.00038608,2]
[393713286,1762942241238,-151.0,0.00038608,2]
[393713287,1762942241248,-151.0,0.00038608,2]
[393713288,1762942241257,-151.0,0.00038608,2]
[393713289,1762942241267,-151.0,0.00038608,2]
[393713290,1762942241276,-151.0,0.00038608,2]
[393713291,1762942241285,-151.0,0.00038608,2]
[393713292,1762942241294,-151.0,0.00038608,2]
[393713293,1762942241303,-151.0,0.00038608,2]
[393713294,1762942241312,-24619.92455852,0.0003863,29]
[393713295,1762942241322,-500.0,0.0003863,15]
[393713296,1762942241331,-523.63656899,0.0003863,7]
[393713297,1762942241340,-500.0,0.0003863,7]
[393713298,1762942241349,-500.0,0.0003863,15]
[393713299,1762942241358,-500.0,0.0003863,2]
[393713300,1762942241367,-500.0,0.0003863,15]
[393713301,1762942241377,-540.49874389,0.0003863,15]
[393713302,1762942241386,-500.0,0.0003863,15]
[393713303,1762942241395,-500.0,0.0003863,15]
[393713304,1762942241405,-500.0,0.0003863,2]
[393713305,1762942241414,-500.0,0.0003863,15]
[393713306,1762942241423,-389.55402667,0.0003863,15]
[393713307,1762942241432,-432.18111829,0.0003863,2]
[393713308,1762942241441,-500.0,0.0003863,15]
[393713309,1762942241451,-500.0,0.0003863,15]
[393713310,1762942241460,-500.0,0.0003863,15]
[393713311,1762942241469,-500.0,0.0003863,15]
[393713312,1762942241478,-500.0,0.0003863,15]
[393713313,1762942241487,-500.0,0.0003863,15]
[393713314,1762942241496,-500.0,0.0003863,15]
[393713315,1762942241505,-500.0,0.0003863,15]
[393713316,1762942241514,-500.0,0.0003863,15]
[393713317,1762942241524,-500.0,0.0003863,15]
[393713318,1762942241533,-500.0,0.0003863,15]
[393713319,1762942241542,-500.0,0.0003863,15]
[393713320,1762942241552,-500.0,0.0003863,15]
[393713321,1762942241561,-500.0,0.0003863,15]
[393713322,1762942241571,-500.0,0.0003863,15]
[393713323,1762942241580,-500.0,0.0003863,15]
[393713324,1762942241590,-500.0,0.0003863,15]
[393713325,1762942241600,-500.0,0.0003863,15]
[393713326,1762942241610,-500.0,0.0003863,15]
[393713327,1762942241620,-500.0,0.0003863,15]
[393713328,1762942241629,-500.0,0.0003863,15]
[393713329,1762942241638,-500.0,0.0003863,15]
[393713330,1762942241647,-500.0,0.0003863,15]
[393713331,1762942241656,-213.66346956,0.0003863,15]
[393713332,1762942241670,-500.0,0.0003863,15]
[393713333,1762942241680,-500.0,0.0003863,15]
[393713334,1762942241689,-500.0,0.0003863,15]
[393713335,1762942241698,-500.0,0.0003863,15]
[393713336,1762942241708,-500.0,0.0003863,15]
[393713337,1762942241717,-500.0,0.0003863,15]
[393713338,1762942241726,-500.0,0.0003863,15]
[393713339,1762942241736,-500.0,0.0003863,15]
[393713340,1762942241745,-500.0,0.0003863,15]
[393713341,1762942241755,-500.0,0.0003863,15]
[393713342,1762942241764,-500.0,0.0003863,15]
[393713343,1762942241773,-500.0,0.0003863,15]
[393713344,1762942241784,-500.0,0.0003863,15]
[393713345,1762942241792,-500.0,0.0003863,15]
[393713346,1762942241801,-500.0,0.0003863,15]
[393713347,1762942241810,-500.0,0.0003863,15]
[393713348,1762942241819,-500.0,0.0003863,15]
[393713349,1762942241828,-500.0,0.0003863,15]
[393713350,1762942241838,-500.0,0.0003863,15]
[393713351,1762942241847,-500.0,0.0003863,15]
[393713352,1762942241857,-500.0,0.0003863,15]
[393713353,1762942241866,-500.0,0.0003863,15]
[393713354,1762942241875,-500.0,0.0003863,15]
[393713355,1762942241884,-500.0,0.0003863,15]
[393713356,1762942241894,-500.0,0.0003863,15]
[393713357,1762942241903,-500.0,0.0003863,15]
[393713358,1762942241911,-500.0,0.0003863,15]
[393713359,1762942241921,-500.0,0.0003863,15]
[393713360,1762942241930,-500.0,0.0003863,15]
[393713361,1762942241939,-500.0,0.0003863,15]
[393713362,1762942241948,-500.0,0.0003863,15]
[393713363,1762942241957,-500.0,0.0003863,15]
[393713364,1762942241967,-500.0,0.0003863,15]
[393713365,1762942241975,-500.0,0.0003863,15]
[393713366,1762942241985,-500.0,0.0003863,15]
[393713367,1762942241994,-500.0,0.0003863,15]
[393713368,1762942242003,-500.0,0.0003863,15]
[393713369,1762942242012,-500.0,0.0003863,15]
[393713370,1762942242021,-500.0,0.0003863,15]
[393713371,1762942242030,-500.0,0.0003863,15]
[393713372,1762942242039,-500.0,0.0003863,15]
[393713373,1762942242052,-500.0,0.0003863,15]
[393713374,1762942242061,-500.0,0.0003863,15]
[393713375,1762942242071,-500.0,0.0003863,15]
[393713376,1762942242080,-163.89164968,0.0003863,15]
[393713377,1762942242089,-500.0,0.0003863,15]
[393713378,1762942242098,-500.0,0.0003863,15]
[393713379,1762942242107,-500.0,0.0003863,15]
[393713380,1762942242116,-500.0,0.0003863,15]
[393713381,1762942242125,-500.0,0.0003863,15]
[393713382,1762942242135,-500.0,0.0003863,15]
[393713383,1762942242144,-500.0,0.0003863,15]
[393713384,1762942242153,-500.0,0.0003863,15]
[393713385,1762942242162,-500.0,0.0003863,15]
[393713386,1762942242171,-500.0,0.0003863,15]
[393713387,1762942242180,-500.0,0.0003863,15]
[393713388,1762942242189,-492.88692891,0.0003863,2]
[393713389,1762942242199,-217.79,0.0003863,7]
[393713390,1762942242208,-180.95,0.0003863,30]
[393713391,1762942242217,-165.0,0.0003863,90]
[393713392,1762942242227,-1141.26008863,0.00038631,2]
[393713393,1762942242235,-255507.59663097,0.00038631,2]
[393713394,1762942242250,-8544.71533281,0.00038631,2]
[393713402,1762942243067,-3200.0,0.00038631,2]
[393713403,1762942243171,-485.67618877,0.00038631,2]
[393713404,1762942243182,-466.7936093,0.00038631,2]
[393713405,1762942243278,-19898.53854247,0.00038631,2]
[393713409,1762942246059,-11041.79196783,0.00038631,2]
[393713410,1762942246167,-426.55067345,0.00038631,2]
[393713411,1762942246433,-2158.22510503,0.00038631,2]
[393713412,1762942246445,-7835.60501169,0.00038631,2]
[393713413,1762942246483,-11994.97478811,0.00038631,2]
[393713414,1762942246494,-462.70739025,0.00038631,2]
[393713415,1762942246505,-794.30477733,0.00038631,2]
[393713416,1762942246517,-474.4368,0.00038631,2]
[393713857,1762943108232,97838.75586655,0.00018,2]
[393713858,1762943108260,26058.74391566,0.00018,2]
[393713864,1762943262979,50138.19057812,0.000215,2]
[393713866,1762943267527,8837.81024355,0.00022,4]
[393713867,1762943269504,14965.25526267,0.00015,2]
[393713868,1762943269529,94224.72091826,0.00015,2]
[393713869,1762943269552,19077.89260492,0.00015,2]
[393713872,1762943355111,-1456.07714842,0.00028,60]
[393713873,1762943355132,-1745.88282958,0.0003,14]
[393713878,1762943432050,-254.11717042,0.0003,14]
[393713881,1762943432060,-22.68630913,0.0003,20]
[393713892,1762943432289,-377.31369087,0.0003,20]
[393713893,1762943432299,-674.59686945,0.0003,30]
[393713894,1762943432309,-0.51773284,0.0003013,30]
[393713895,1762943432329,-184.00961881,0.0003013,30]
[393713896,1762943432338,-162.70330822,0.0003013,20]
[393713897,1762943432347,-259.96952667,0.0003143,4]
[393713898,1762943432357,-162.0,0.00033214,120]
[393713899,1762943432366,-162.0,0.00034875,120]
[393713900,1762943432376,-319.141,0.0003526,41]
[393713902,1762943432385,-210.0,0.00036139,2]
[393713903,1762943432395,-395.25909271,0.00036258,30]
[393713904,1762943432405,-555.60818222,0.00036415,30]
[393713905,1762943432415,-162.0,0.00036619,120]
[393713906,1762943432425,-156.47,0.00036897,120]
[393713907,1762943432436,-617.25420059,0.00036943,2]
[393713909,1762943432627,-4382.74579941,0.00036943,2]
[393713910,1762943432635,-210.0,0.00037039,120]
[393713911,1762943432643,-999.0,0.00037117,3]
[393713912,1762943432651,-8774.37994156,0.0003716,2]
[393713913,1762943432660,-210.0,0.00037183,2]
[393713914,1762943432670,-1000.0,0.00037229,2]
[393713915,1762943432680,-339.96,0.00037295,120]
[393713916,1762943432694,-153.89,0.00037434,2]
[393713917,1762943432704,-532.71,0.00037445,2]
[393713918,1762943432713,-150.0,0.0003746,2]
[393713919,1762943432722,-500.0,0.00037557,7]
[393713920,1762943432732,-600.0,0.00037557,7]
[393713921,1762943432741,-800.0,0.00037557,7]
[393713922,1762943432750,-168.0,0.00037825,120]
[393713923,1762943432760,-550.0,0.00037969,2]
[393713924,1762943432769,-19565.89382592,0.0003797,2]
[393713925,1762943432781,-14251.8,0.0003797,2]
[393713926,1762943432792,-4278.2265,0.0003797,2]
[393713927,1762943432817,-18710.21654113,0.0003797,2]
[393713928,1762943432827,-168.0,0.00037987,2]
[393713929,1762943432836,-15694.95804471,0.00038,7]
[393713951,1762943438120,-500.78571235,0.00037416,30]
[393713952,1762943438133,-639.20428765,0.00037416,30]
[393713953,1762943438143,-2872.7703977,0.00038,7]
[393713954,1762943438155,-650.0,0.00038,7]
[393713955,1762943438177,-1069.08078013,0.00038,7]
[393713956,1762943438189,-165.0,0.00038,30]
[393713957,1762943438199,-519.96092318,0.00038058,30]
[393713958,1762943438210,-168.0,0.00038089,2]
[393713959,1762943438221,-3705.79,0.00038089,10]
[393713960,1762943438231,-168.0,0.00038126,2]
[393713961,1762943438241,-500.0,0.00038178,7]
[393713962,1762943438251,-500.0,0.00038178,7]
[393713963,1762943438264,-500.0,0.00038178,7]
[393713964,1762943438274,-500.0,0.00038178,7]
[393713965,1762943438285,-500.0,0.00038178,7]
[393713966,1762943438295,-500.0,0.00038178,7]
[393713967,1762943438306,-500.0,0.00038178,7]
[393713968,1762943438317,-500.0,0.00038178,7]
[393713969,1762943438327,-500.0,0.00038178,7]
[393713970,1762943438338,-500.0,0.00038178,7]
[393713971,1762943438348,-500.0,0.00038178,7]
[393713972,1762943438359,-500.0,0.00038178,7]
[393713973,1762943438369,-500.0,0.00038178,7]
[393713974,1762943438379,-500.0,0.00038178,7]
[393713975,1762943438389,-500.0,0.00038178,7]
[393713976,1762943438400,-500.0,0.00038178,7]
[393713978,1762943438410,-500.0,0.00038178,7]
[393713980,1762943438421,-228.14,0.00038178,7]
[393713982,1762943438431,-483.99035359,0.00038178,7]
[393713984,1762943438448,-16.00964641,0.00038178,7]
[393713986,1762943438458,-500.0,0.00038178,7]
[393713989,1762943438469,-65.51617359,0.00038178,7]
[393713991,1762943438496,-434.48382641,0.00038178,7]
[393713992,1762943438507,-421.85,0.00038178,7]
[393713993,1762943438517,-153.0,0.00038182,120]
[393713994,1762943438529,-153.0,0.00038182,120]
[393713995,1762943438544,-153.0,0.00038182,120]
[393713996,1762943438555,-153.0,0.00038182,120]
[393713997,1762943438566,-153.0,0.00038182,120]
[393713998,1762943438577,-153.0,0.00038182,120]
[393713999,1762943438588,-153.0,0.00038182,120]
[393714000,1762943438598,-153.0,0.00038182,120]
[393714001,1762943438608,-153.0,0.00038182,120]
[393714002,1762943438618,-153.0,0.00038182,120]
[393714003,1762943438628,-153.0,0.00038182,120]
[393714004,1762943438639,-153.0,0.00038182,120]
[393714005,1762943438649,-153.0,0.00038182,120]
[393714006,1762943438659,-153.0,0.00038182,120]
[393714007,1762943438670,-153.0,0.00038182,120]
[393714008,1762943438682,-153.0,0.00038182,120]
[393714009,1762943438692,-153.0,0.00038182,120]
[393714010,1762943438703,-153.0,0.00038182,120]
[393714011,1762943438714,-153.0,0.00038182,120]
[393714012,1762943438724,-153.0,0.00038182,120]
[393714013,1762943438735,-153.0,0.00038182,120]
[393714014,1762943438746,-153.0,0.00038182,120]
[393714015,1762943438756,-153.0,0.00038182,120]
[393714016,1762943438767,-1000.0,0.0003823,2]
[393714017,1762943438777,-18493.38433726,0.0003823,2]
[393714022,1762943440153,-14668.26476274,0.0003823,2]
[393714023,1762943440163,-208.98005,0.0003824,2]
[393714024,1762943440174,-179.3763009,0.00038259,2]
[393714025,1762943440184,-4082.27230746,0.00038266,2]
[393714026,1762943440195,-151.0,0.00038307,2]
[393714027,1762943440204,-151.0,0.00038307,2]
[393714028,1762943440215,-151.0,0.00038307,2]
[393714029,1762943440225,-151.0,0.00038307,2]
[393714030,1762943440235,-151.0,0.00038307,2]
[393714031,1762943440245,-151.0,0.00038307,2]
[393714032,1762943440255,-151.0,0.00038307,2]
[393714033,1762943440265,-151.0,0.00038307,2]
[393714034,1762943440276,-151.0,0.00038307,2]
[393714035,1762943440286,-151.0,0.00038307,2]
[393714036,1762943440297,-151.0,0.00038307,2]
[393714037,1762943440307,-151.0,0.00038307,2]
[393714038,1762943440317,-151.0,0.00038307,2]
[393714039,1762943440328,-151.0,0.00038307,2]
[393714040,1762943440339,-151.0,0.00038307,2]
[393714041,1762943440349,-151.0,0.00038307,2]
[393714042,1762943440359,-151.0,0.00038307,2]
[393714043,1762943440369,-151.0,0.00038307,2]
[393714044,1762943440379,-151.0,0.00038307,2]
[393714045,1762943440388,-151.0,0.00038307,2]
[393714046,1762943440398,-151.0,0.00038307,2]
[393714047,1762943440409,-151.0,0.00038307,2]
[393714048,1762943440419,-151.0,0.00038307,2]
[393714050,1762943440430,-151.0,0.00038307,2]
[393714053,1762943440443,-151.0,0.00038307,2]
[393714073,1762943440642,-151.0,0.00038307,2]
[393714074,1762943440653,-151.0,0.00038307,2]
[393714075,1762943440663,-151.0,0.00038307,2]
[393714077,1762943440674,-151.0,0.00038307,2]
[393714079,1762943440684,-151.0,0.00038307,2]
[393714081,1762943440694,-151.0,0.00038307,2]
[393714084,1762943440703,-151.0,0.00038307,2]
[393714087,1762943440712,-151.0,0.00038307,2]
[393714090,1762943440721,-151.0,0.00038307,2]
[393714093,1762943440730,-151.0,0.00038307,2]
[393714096,1762943440739,-154.69945868,0.00038307,2]
[393714099,1762943440749,-168.0,0.00038311,2]
[393714102,1762943440758,-500.0,0.00038328,2]
[393714105,1762943440768,-500.0,0.00038328,15]
[393714108,1762943440777,-500.0,0.00038328,15]
[393714111,1762943440786,-500.0,0.00038328,7]
[393714114,1762943440795,-523.63656899,0.00038328,7]
[393714117,1762943440805,-500.0,0.00038328,15]
[393714121,1762943440815,-540.49874389,0.00038328,15]
[393714125,1762943440824,-500.0,0.00038328,2]
[393714127,1762943440833,-500.0,0.00038328,15]
[393714131,1762943440843,-500.0,0.00038328,15]
[393714134,1762943440852,-500.0,0.00038328,15]
[393714137,1762943440862,-432.18111829,0.00038328,2]
[393714140,1762943440871,-389.55402667,0.00038328,15]
[393714142,1762943440881,-500.0,0.00038328,15]
[393714144,1762943440890,-500.0,0.00038328,15]
[393714146,1762943440899,-500.0,0.00038328,15]
[393714148,1762943440908,-500.0,0.00038328,15]
[393714150,1762943440917,-500.0,0.00038328,15]
[393714152,1762943440926,-500.0,0.00038328,15]
[393714154,1762943440936,-500.0,0.00038328,15]
[393714156,1762943440945,-500.0,0.00038328,15]
[393714157,1762943440955,-500.0,0.00038328,15]
[393714159,1762943440965,-500.0,0.00038328,15]
[393714160,1762943440974,-500.0,0.00038328,15]
[393714161,1762943440983,-500.0,0.00038328,15]
[393714162,1762943440992,-500.0,0.00038328,15]
[393714163,1762943441002,-500.0,0.00038328,15]
[393714164,1762943441011,-500.0,0.00038328,15]
[393714165,1762943441020,-500.0,0.00038328,15]
[393714166,1762943441030,-500.0,0.00038328,15]
[393714167,1762943441039,-500.0,0.00038328,15]
[393714168,1762943441049,-500.0,0.00038328,15]
[393714169,1762943441059,-500.0,0.00038328,15]
[393714170,1762943441068,-500.0,0.00038328,15]
[393714171,1762943441077,-500.0,0.00038328,15]